bitfinex-derivatives/quotes_BTCF0:USTF0_20250212
["timestamp","ask_amount","ask_price","bid_price","bid_amount"]
[1739403198463,0.3708,97623.0,97622.0,0.07814536]
[1739403198976,0.3718,97623.0,97622.0,0.07814536]
[1739403199169,0.3708,97623.0,97622.0,0.07814536]
[1739403199366,0.3708,97623.0,97622.0,0.07814506]
[1739403201479,0.3708,97623.0,97622.0,0.07814143]
[1739403204481,0.3708,97623.0,97622.0,0.11016661]
[1739403205478,0.0386,97630.0,97622.0,0.1101663]
[1739403205675,0.0386,97630.0,97624.0,0.3608]
[1739403205881,0.0001536,97632.0,97625.0,0.19015136]
[1739403206087,0.0001536,97632.0,97626.0,0.10375136]
[1739403206281,0.0001536,97632.0,97627.0,0.10375136]
[1739403206476,0.0001536,97632.0,97624.0,0.3608]
[1739403206477,0.0001536,97632.0,97629.0,0.2048266]
[1739403206675,0.0001536,97632.0,97630.0,0.16165136]
[1739403206887,0.0548,97657.0,97631.0,0.57945136]
[1739403207090,0.2047779,97654.0,97647.0,0.11231795]
[1739403207285,0.23,97654.0,97647.0,0.11231795]
[1739403209685,0.232,97654.0,97648.0,0.04610266]
[1739403209887,0.232,97654.0,97649.0,0.10373099]
[1739403210088,0.232,97654.0,97650.0,0.0781184]
[1739403210089,0.4367764,97654.0,97650.0,0.0781184]
[1739403210389,0.2047783,97653.0,97651.0,0.0781184]
[1739403210580,0.4147783,97653.0,97652.0,0.0781184]
[1739403211092,0.4147783,97653.0,97652.0,0.13574673]
[1739403211790,0.4207783,97653.0,97652.0,0.13574691]
[1739403212294,0.4207783,97653.0,97652.0,0.07811858]
[1739403213001,0.4207783,97653.0,97652.0,0.13574713]
[1739403216892,0.216,97653.0,97652.0,0.13574713]
[1739403218100,0.216,97653.0,97652.0,0.52215542]
[1739403220096,0.216,97653.0,97652.0,0.47605459]
[1739403220397,0.006,97653.0,97652.0,0.52215147]
[1739403221800,0.006,97653.0,97652.0,0.52214653]
[1739403222999,0.006,97653.0,97652.0,0.41842855]
[1739403223396,0.006,97653.0,97652.0,0.3608]
[1739403223605,0.2607779,97653.0,97652.0,0.3608]
[1739403223793,0.2607779,97653.0,97652.0,0.38641124]
[1739403223993,0.2607779,97653.0,97652.0,0.07811428]
[1739403224196,0.2607779,97653.0,97652.0,0.04610023]
[1739403224606,0.2607779,97653.0,97652.0,0.10372552]
[1739403225499,0.2607779,97653.0,97652.0,0.03201405]
[1739403225704,0.2607779,97653.0,97652.0,0.01322552]
[1739403225997,0.2047947,97645.0,97644.0,0.01032637]
[1739403226201,0.22,97645.0,97640.0,0.11231795]
[1739403226405,0.204798,97644.0,97640.0,0.11231795]
[1739403226702,0.204798,97644.0,97636.0,0.30579678]
[1739403226703,0.21,97644.0,97636.0,0.30579678]
[1739403227008,0.2048003,97643.0,97636.0,0.51060938]
[1739403227208,0.4148003,97643.0,97636.0,0.2053726]
[1739403227504,0.4148003,97643.0,97636.0,0.2048126]
[1739403227706,0.4148003,97643.0,97641.0,0.01044332]
[1739403227898,0.4148003,97643.0,97641.0,0.0001536]
[1739403228606,0.4178003,97643.0,97641.0,0.0001536]
[1739403229202,0.204801,97642.0,97641.0,0.0001536]
[1739403229410,0.274801,97642.0,97641.0,0.0001536]
[1739403230206,0.274801,97642.0,97641.0,0.03645309]
[1739403230909,0.274801,97642.0,97641.0,0.01083804]
[1739403231106,0.277801,97642.0,97641.0,0.01083804]
[1739403231303,0.277801,97642.0,97641.0,0.03645309]
[1739403232202,0.276801,97642.0,97641.0,0.03645315]
[1739403233407,0.277801,97642.0,97641.0,0.06847202]
[1739403233802,0.073,97642.0,97641.0,0.10049089]
[1739403234003,0.277801,97642.0,97641.0,0.10049089]
[1739403235513,0.207801,97642.0,97641.0,0.14659771]
[1739403235907,0.207801,97642.0,97641.0,0.17221261]
[1739403236405,0.003,97642.0,97641.0,0.17221261]
[1739403237104,0.003,97642.0,97641.0,0.17221176]
[1739403239110,0.003,97642.0,97641.0,0.11457845]
[1739403239315,0.003,97642.0,97641.0,0.17220311]
[1739403240811,0.003,97642.0,97641.0,0.17220223]
[1739403242212,0.003,97642.0,97641.0,0.17220857]
[1739403243013,0.207801,97642.0,97641.0,0.17220857]
[1739403244011,0.003,97642.0,97641.0,0.17220857]
[1739403244208,0.003,97642.0,97641.0,0.17220794]
[1739403244408,0.003,97642.0,97641.0,0.37701104]
[1739403245517,0.003,97642.0,97641.0,0.17220794]
[1739403245815,0.003,97642.0,97641.0,0.37701104]
[1739403246009,0.2183,97652.0,97641.0,0.17220794]
[1739403246307,0.2183,97652.0,97646.0,0.2047917]
[1739403246616,0.2183,97652.0,97647.0,0.10373613]
[1739403246819,0.2183,97652.0,97648.0,0.10373613]
[1739403247018,0.2183,97652.0,97649.0,0.10373613]
[1739403247210,0.2183,97652.0,97650.0,0.10373613]
[1739403247518,0.2183,97652.0,97651.0,0.10373613]
[1739403247718,0.2183,97652.0,97651.0,0.1613699]
[1739403248217,0.2213,97652.0,97651.0,0.1613699]
[1739403248616,0.2213,97652.0,97651.0,0.16136723]
[1739403248816,0.2243,97652.0,97651.0,0.16136723]
[1739403249019,0.42908,97652.0,97651.0,0.16136723]
[1739403250918,0.2243,97652.0,97651.0,0.16136723]
[1739403251115,0.2243,97652.0,97651.0,0.36614933]
[1739403251419,0.006,97652.0,97651.0,0.36614933]
[1739403252315,0.016,97652.0,97651.0,0.36614933]
[1739403252517,0.016,97652.0,97651.0,0.16136723]
[1739403252717,0.016,97652.0,97651.0,0.16136531]
[1739403253019,0.016,97652.0,97651.0,0.36614741]
[1739403253217,0.016,97652.0,97651.0,0.16136531]
[1739403255031,0.006,97652.0,97651.0,0.36614707]
[1739403255622,0.016,97652.0,97651.0,0.36614707]
[1739403255824,0.016,97652.0,97651.0,0.16136507]
[1739403257017,0.016,97652.0,97651.0,0.0832452]
[1739403257222,0.016,97652.0,97651.0,0.16136007]
[1739403258623,0.006,97652.0,97651.0,0.16136007]
[1739403259226,0.006,97652.0,97651.0,0.16135882]
[1739403261424,0.006,97652.0,97651.0,0.16135901]
[1739403263528,0.006,97652.0,97651.0,0.16135947]
[1739403265728,0.066,97652.0,97651.0,0.16135947]
[1739403265926,0.2707799,97652.0,97651.0,0.16135947]
[1739403266927,0.6315799,97652.0,97651.0,0.16135947]
[1739403267326,0.6315799,97652.0,97651.0,0.1613628]
[1739403267523,0.6315799,97652.0,97651.0,0.10373408]
[1739403267728,0.6315799,97652.0,97651.0,0.27117024]
[1739403267927,0.6315799,97652.0,97651.0,0.17057024]
[1739403268130,0.7082404,97652.0,97651.0,0.17057024]
[1739403268534,0.7082404,97652.0,97651.0,0.14495486]
[1739403269334,0.9265404,97652.0,97651.0,0.14495486]
[1739403269927,0.9161799,97652.0,97651.0,0.14495486]
[1739403270330,0.9161799,97652.0,97651.0,0.15536771]
[1739403271029,0.9161799,97652.0,97651.0,0.01041285]
[1739403271235,0.7114,97652.0,97643.0,0.7572]
[1739403271531,0.2047916,97649.0,97648.0,0.2047873]
[1739403271835,0.2047968,97644.0,97643.0,0.00056]
[1739403272027,0.3847968,97644.0,97642.0,0.2047996]
[1739403272838,0.3847968,97644.0,97642.0,0.21542977]
[1739403273138,0.3887968,97644.0,97643.0,0.03201863]
[1739403273637,0.3877968,97644.0,97643.0,0.03201863]
[1739403274548,0.183,97644.0,97643.0,0.03201818]
[1739403274837,0.183,97644.0,97643.0,0.15821818]
[1739403275028,0.18,97644.0,97643.0,0.15821818]
[1739403275225,0.184,97644.0,97643.0,0.15821818]
[1739403277439,0.3887968,97644.0,97643.0,0.03201818]
[1739403277740,0.3887968,97644.0,97643.0,0.07812116]
[1739403277935,0.184,97644.0,97643.0,0.07812116]
[1739403278146,0.184,97644.0,97643.0,0.10373422]
[1739403278334,0.3887968,97644.0,97643.0,0.10373133]
[1739403279033,0.3887968,97644.0,97643.0,0.10373264]
[1739403279740,0.3887968,97644.0,97643.0,0.07171642]
[1739403280346,0.7495968,97644.0,97643.0,0.07171642]
[1739403280735,0.7495968,97644.0,97643.0,0.07172229]
[1739403281442,0.7495968,97644.0,97643.0,0.04610605]
[1739403282645,0.7495968,97644.0,97643.0,0.07172238]
[1739403282945,0.7495968,97644.0,97643.0,0.07172234]
[1739403283343,0.7495968,97644.0,97643.0,0.04610605]
[1739403287543,0.7495968,97644.0,97643.0,0.07172254]
[1739403289145,0.7495968,97644.0,97643.0,0.07172242]
[1739403289944,0.5695968,97644.0,97643.0,0.07172242]
[1739403290848,0.2087968,97644.0,97643.0,0.07172242]
[1739403291442,0.004,97644.0,97643.0,0.07172242]
[1739403291639,0.004,97644.0,97643.0,0.27652132]
[1739403292049,0.004,97644.0,97643.0,0.07172242]
[1739403292649,0.2087968,97644.0,97643.0,0.07172242]
[1739403293349,0.2087968,97644.0,97643.0,0.07172093]
[1739403294150,0.054,97644.0,97643.0,0.27651983]
[1739403294343,0.054,97644.0,97643.0,0.34091983]
[1739403294545,0.054,97644.0,97643.0,0.13612093]
[1739403295948,0.054,97644.0,97643.0,0.09001306]
[1739403296154,0.054,97644.0,97643.0,0.13611855]
[1739403296850,0.2587968,97644.0,97643.0,0.13611855]
[1739403302452,0.2587968,97644.0,97643.0,0.07171855]
[1739403302853,0.2587968,97644.0,97643.0,0.04610439]
[1739403303271,0.2587968,97644.0,97643.0,0.04610587]
[1739403303869,0.2587968,97644.0,97643.0,0.04610586]
[1739403304165,0.2087968,97644.0,97643.0,0.04610586]
[1739403304957,0.4387968,97644.0,97643.0,0.04610586]
[1739403305764,0.2087968,97644.0,97643.0,0.04610586]
[1739403306660,0.21902927,97644.0,97643.0,0.04610586]
[1739403307066,0.204801,97642.0,97641.0,1e-08]
[1739403307260,0.424801,97642.0,97641.0,1e-08]
[1739403309370,0.428801,97642.0,97641.0,1e-08]
[1739403309673,0.424801,97642.0,97641.0,1e-08]
[1739403309870,0.430801,97642.0,97641.0,1e-08]
[1739403310269,0.424801,97642.0,97641.0,1e-08]
[1739403310566,0.429801,97642.0,97641.0,1e-08]
[1739403311974,0.430801,97642.0,97641.0,1e-08]
[1739403312975,0.429801,97642.0,97641.0,1e-08]
[1739403313576,0.430801,97642.0,97641.0,1e-08]
[1739403315070,0.424801,97642.0,97641.0,1e-08]
[1739403315375,0.428801,97642.0,97641.0,1e-08]
[1739403315678,0.424801,97642.0,97641.0,1e-08]
[1739403315881,0.430801,97642.0,97641.0,1e-08]
[1739403316771,0.424801,97642.0,97641.0,1e-08]
[1739403316973,0.430801,97642.0,97641.0,1e-08]
[1739403317174,0.210801,97642.0,97641.0,1e-08]
[1739403318383,0.204801,97642.0,97641.0,1e-08]
[1739403318572,0.210801,97642.0,97641.0,1e-08]
[1739403318779,0.20975736,97642.0,97641.0,1e-08]
[1739403320974,0.41975736,97642.0,97641.0,1e-08]
[1739403321176,0.216,97642.0,97641.0,1e-08]
[1739403321474,0.216,97642.0,97641.0,0.02049222]
[1739403321777,0.204781,97652.0,97641.0,0.58609542]
[1739403322081,0.314781,97652.0,97649.0,0.3608]
[1739403322280,0.314781,97652.0,97650.0,0.0657]
[1739403322482,0.11,97652.0,97651.0,0.2047822]
[1739403322682,0.0001536,97660.0,97651.0,0.0642]
[1739403322875,0.4149186,97660.0,97658.0,0.3608]
[1739403323076,0.4149186,97660.0,97659.0,0.0612]
[1739403323781,0.4149186,97660.0,97659.0,0.081688]
[1739403323977,0.4149186,97660.0,97659.0,0.10729866]
[1739403324183,0.4149186,97660.0,97659.0,0.0612]
[1739403324775,0.4209186,97660.0,97659.0,0.0612]
[1739403325078,0.4209186,97660.0,97659.0,0.1072989]
[1739403325279,0.4209186,97660.0,97659.0,0.1082989]
[1739403325280,0.4219186,97660.0,97659.0,0.1082989]
[1739403325985,0.4219186,97660.0,97659.0,0.13390929]
[1739403326580,0.4219186,97660.0,97659.0,0.05222089]
[1739403326881,0.4219186,97660.0,97659.0,0.0470988]
[1739403328787,0.4219186,97660.0,97659.0,0.2309627]
[1739403329283,0.4219186,97660.0,97659.0,0.23096271]
[1739403329984,0.4219186,97660.0,97659.0,0.1848639]
[1739403332384,0.4219186,97660.0,97659.0,0.20535366]
[1739403332586,0.2119186,97660.0,97659.0,0.20535366]
[1739403332782,0.2119186,97660.0,97659.0,0.1848639]
[1739403333088,0.2119186,97660.0,97659.0,0.04710145]
[1739403335292,0.2119186,97660.0,97659.0,0.0266122]
[1739403335786,0.2119186,97660.0,97650.0,0.0657]
[1739403335787,0.58844901,97660.0,97640.0,0.36136]
[1739403335984,0.5655843,97650.0,97640.0,0.07378101]
[1739403336186,0.7655843,97650.0,97639.0,1.06613688]
[1739403336386,0.7655843,97650.0,97640.0,0.07378101]
[1739403336589,0.7655843,97650.0,97639.0,1.06613688]
[1739403336785,0.7655843,97650.0,97640.0,0.07378101]
[1739403336986,0.7655843,97650.0,97639.0,1.06613688]
[1739403337484,0.7705843,97650.0,97639.0,1.06613688]
[1739403337885,0.204799,97643.0,97642.0,0.24515187]
[1739403338091,0.404799,97643.0,97642.0,0.26564502]
[1739403339293,0.404799,97643.0,97642.0,0.26564559]
[1739403340591,0.407799,97643.0,97642.0,0.24515187]
[1739403340983,0.41841337,97643.0,97642.0,0.24515187]
[1739403341180,0.204801,97642.0,97639.0,0.75788]
[1739403341380,0.785601,97642.0,97639.0,0.75788]
[1739403341588,0.785601,97642.0,97641.0,0.020494]
[1739403341788,0.5808,97642.0,97641.0,0.23557674]
[1739403341987,0.785601,97642.0,97641.0,0.03077364]
[1739403342188,0.424801,97642.0,97641.0,0.03077364]
[1739403343490,0.424801,97642.0,97641.0,0.03077231]
[1739403343691,0.427801,97642.0,97641.0,0.03077231]
[1739403345587,0.427801,97642.0,97641.0,0.03077228]
[1739403346800,0.427801,97642.0,97641.0,0.05638806]
[1739403347300,0.427801,97642.0,97641.0,0.01027965]
[1739403347795,0.427801,97642.0,97641.0,1e-08]
[1739403348194,0.427801,97642.0,97641.0,0.02049279]
[1739403348895,0.427801,97642.0,97641.0,0.04610876]
[1739403351593,0.427801,97642.0,97641.0,0.04610898]
[1739403357001,0.427801,97642.0,97641.0,0.02561598]
[1739403357597,0.427801,97642.0,97641.0,0.04610982]
[1739403357903,0.427801,97642.0,97641.0,1e-08]
[1739403358504,0.427801,97642.0,97641.0,0.02049386]
[1739403359307,0.427801,97642.0,97641.0,1e-08]
[1739403359603,0.427801,97642.0,97641.0,0.02561734]
[1739403359796,0.43518102,97651.0,97641.0,0.02561734]
[1739403359797,0.00060001,97651.0,97650.0,0.2047842]
[1739403359998,0.00052001,97657.0,97656.0,0.2047717]
[1739403360201,0.00153639,97662.0,97656.0,0.40691038]
[1739403360408,1e-08,97662.0,97657.0,0.07812159]
[1739403360708,1e-08,97662.0,97658.0,0.07812075]
[1739403360910,1e-08,97662.0,97659.0,0.07812075]
[1739403361112,1e-08,97662.0,97660.0,0.07812075]
[1739403361308,1e-08,97662.0,97661.0,0.07812075]
[1739403361698,1e-08,97662.0,97661.0,0.07810906]
[1739403361898,1e-08,97662.0,97661.0,0.10372639]
[1739403362198,1e-08,97662.0,97661.0,0.10372508]
[1739403362909,0.00700001,97662.0,97661.0,0.52202532]
[1739403363303,1e-08,97671.0,97664.0,0.2047528]
[1739403363510,0.3608,97705.0,97670.0,0.3608]
[1739403363807,0.2183,97704.0,97695.0,0.07369075]
[1739403363998,0.2,97704.0,97696.0,0.23750011]
[1739403364200,0.2,97704.0,97697.0,0.04610011]
[1739403364511,0.2,97704.0,97698.0,0.02560611]
[1739403364808,0.2,97704.0,97699.0,0.02560611]
[1739403365000,0.2,97704.0,97700.0,0.02560611]
[1739403365200,0.2,97704.0,97701.0,0.02560611]
[1739403365400,0.2,97704.0,97702.0,0.02560611]
[1739403365607,0.2,97704.0,97703.0,0.02560031]
[1739403365911,0.2,97704.0,97703.0,0.03601338]
[1739403366114,0.2,97704.0,97703.0,0.02560031]
[1739403366404,0.202,97704.0,97703.0,0.03586686]
[1739403366607,0.202,97704.0,97703.0,0.05120057]
[1739403367403,0.2,97704.0,97703.0,0.02660026]
[1739403368616,0.2,97704.0,97703.0,0.001]
[1739403369114,0.2,97704.0,97703.0,0.01128655]
[1739403369318,0.2,97704.0,97703.0,0.001]
[1739403371212,0.2,97704.0,97703.0,0.01131148]
[1739403371714,0.2,97704.0,97703.0,0.001]
[1739403372514,0.2,97704.0,97703.0,0.0113769]
[1739403373211,0.2,97704.0,97703.0,0.03697726]
[1739403374008,0.2,97704.0,97703.0,0.06257738]
[1739403374515,0.2,97704.0,97703.0,0.09457619]
[1739403375214,0.0001536,97710.0,97703.0,0.09457619]
[1739403375405,0.0401536,97710.0,97704.0,0.11949917]
[1739403375600,0.0001536,97710.0,97705.0,0.05759917]
[1739403375810,0.0601536,97710.0,97706.0,0.05759917]
[1739403376011,0.2046624,97709.0,97707.0,0.05759917]
[1739403376210,0.4146624,97709.0,97708.0,0.05759917]
[1739403376613,0.3608,97725.0,97708.0,0.07807706]
[1739403376910,0.2183,97729.0,97709.0,0.43887593]
[1739403377110,0.4208,97718.0,97710.0,0.05759917]
[1739403377314,0.4208,97718.0,97711.0,0.05759917]
[1739403377509,0.2046501,97714.0,97712.0,0.05759917]
[1739403377813,0.3346501,97714.0,97713.0,0.05759917]
[1739403378210,0.3346501,97714.0,97713.0,0.11519666]
[1739403378513,0.3346501,97714.0,97713.0,0.08319785]
[1739403378714,0.3346501,97714.0,97713.0,0.05120048]
[1739403380117,0.13,97714.0,97713.0,0.05220048]
[1739403380414,0.13,97714.0,97713.0,0.0841946]
[1739403381203,0.13,97714.0,97713.0,0.11618866]
[1739403383109,0.13,97714.0,97713.0,0.13666478]
[1739403385112,0.13,97714.0,97713.0,0.13665671]
[1739403386722,0.13,97714.0,97713.0,0.13665626]
[1739403387125,0.13,97714.0,97713.0,0.13565626]
[1739403387323,0.13,97714.0,97713.0,0.16225207]
[1739403388026,0.13,97714.0,97713.0,0.13665753]
[1739403389127,0.13,97714.0,97713.0,0.16225403]
[1739403389823,0.4908,97714.0,97713.0,0.05858772]
[1739403390021,0.4908,97714.0,97698.0,0.30555207]
[1739403390022,0.2046819,97699.0,97698.0,0.30555207]
[1739403390324,0.7954819,97699.0,97698.0,0.30555207]
[1739403390924,0.80584584,97699.0,97698.0,0.30555207]
[1739403391127,0.2046945,97693.0,97692.0,0.7576]
[1739403391323,0.2046945,97693.0,97691.0,0.0001536]
[1739403391324,0.4146945,97693.0,97691.0,0.0001536]
[1739403392927,0.2183,97692.0,97691.0,1e-07]
[1739403393128,0.4283,97692.0,97691.0,1e-07]
[1739403393825,0.21330925,97692.0,97675.0,0.0643]
[1739403394129,0.5655301,97676.0,97675.0,0.0643]
[1739403394326,0.5655301,97676.0,97675.0,0.08478669]
[1739403394327,0.7555301,97676.0,97675.0,0.08478669]
[1739403394927,0.7555301,97676.0,97675.0,0.0643]
[1739403395133,0.7555301,97676.0,97675.0,0.07488819]
[1739403396233,0.7615301,97676.0,97675.0,0.07488819]
[1739403396622,0.7555301,97676.0,97675.0,0.07488819]
[1739403396825,0.7555301,97676.0,97675.0,0.07588819]
[1739403396826,0.7615301,97676.0,97675.0,0.07588819]
[1739403397924,0.7615301,97676.0,97675.0,0.0653]
[1739403398130,0.5568,97676.0,97666.0,0.00015352]
[1739403398329,0.565549,97667.0,97666.0,0.00015352]
[1739403398529,0.795549,97667.0,97666.0,0.01043945]
[1739403398727,0.795549,97667.0,97666.0,0.00015352]
[1739403399931,0.800549,97667.0,97666.0,0.00015352]
[1739403400132,0.439749,97667.0,97666.0,0.01070431]
[1739403400426,0.439749,97667.0,97666.0,0.02064104]
[1739403400427,0.005,97667.0,97666.0,0.02064104]
[1739403400837,0.005,97667.0,97666.0,0.04624909]
[1739403402033,0.005,97667.0,97666.0,0.03080649]
[1739403402436,0.00015352,97676.0,97675.0,0.2047322]
[1739403402639,0.09015352,97676.0,97675.0,0.58601972]
[1739403403939,0.09515352,97676.0,97675.0,0.58601676]
[1739403404841,0.00515352,97676.0,97675.0,0.58601676]
[1739403406542,0.00015352,97676.0,97675.0,0.58601676]
[1739403406738,0.2047017,97690.0,97675.0,0.38128456]
[1739403406940,0.4447017,97690.0,97680.0,0.12070771]
[1739403407139,0.4447017,97690.0,97681.0,0.1835]
[1739403407338,0.4447017,97690.0,97682.0,0.02048294]
[1739403407539,0.24,97690.0,97683.0,0.3608]
[1739403407940,0.24,97690.0,97683.0,0.5655135]
[1739403408245,0.24,97690.0,97684.0,0.2047119]
[1739403408637,0.244,97690.0,97684.0,0.2047119]
[1739403409040,0.24,97690.0,97685.0,0.2047098]
[1739403409239,0.24,97690.0,97683.0,0.3608]
[1739403409240,0.244,97690.0,97688.0,0.2047041]
[1739403409741,0.244,97690.0,97684.0,0.2047134]
[1739403410152,0.24,97690.0,97684.0,0.2047134]
[1739403410343,0.241,97690.0,97688.0,0.001]
[1739403410542,0.241,97690.0,97688.0,0.00941981]
[1739403410742,0.241,97690.0,97688.0,0.001]
[1739403411942,0.244,97690.0,97686.0,0.2047076]
[1739403412149,0.4487023,97690.0,97686.0,0.2047076]
[1739403412542,0.4487023,97690.0,97688.0,0.001]
[1739403413145,0.4487023,97690.0,97686.0,0.2057076]
[1739403413146,0.2047065,97688.0,97686.0,0.2057076]
[1739403413345,0.4247065,97688.0,97686.0,0.21416811]
[1739403414651,0.4247065,97688.0,97686.0,0.21316811]
[1739403414852,0.2047065,97688.0,97686.0,0.21316811]
[1739403415353,0.2087065,97688.0,97686.0,0.21416811]
[1739403415748,0.2087065,97688.0,97686.0,0.00946051]
[1739403417359,0.2087065,97688.0,97687.0,0.02048271]
[1739403418363,0.2087065,97688.0,97686.0,0.21416921]
[1739403418561,0.004,97688.0,97687.0,0.02048262]
[1739403418858,0.20800685,97692.0,97689.0,0.2047009]
[1739403419049,0.20800685,97692.0,97690.0,0.02048262]
[1739403419253,0.20800685,97692.0,97689.0,0.2047009]
[1739403419554,0.20800685,97692.0,97690.0,0.225183]
[1739403419755,0.20800685,97692.0,97690.0,0.2047004]
[1739403421058,0.21200685,97692.0,97690.0,0.2047004]
[1739403421257,0.00730925,97692.0,97690.0,0.2047004]
[1739403421560,0.2046987,97691.0,97690.0,0.2047004]
[1739403421759,0.2046987,97691.0,97690.0,0.22618302]
[1739403422062,0.2046987,97691.0,97690.0,0.22618301]
[1739403422662,0.2046987,97691.0,97690.0,0.22518301]
[1739403422962,0.2086987,97691.0,97690.0,0.22618301]
[1739403423363,0.2086987,97691.0,97690.0,0.02148261]
[1739403428364,0.004,97691.0,97690.0,0.02148261]
[1739403428962,0.004,97691.0,97690.0,0.02148257]
[1739403429458,0.01,97691.0,97690.0,0.02148257]
[1739403430766,0.01,97691.0,97690.0,0.02148025]
[1739403431362,0.00015352,97696.0,97690.0,0.02148025]
[1739403431675,0.2046475,97716.0,97701.0,0.2046771]
[1739403431861,0.3908,97710.0,97702.0,0.14798025]
[1739403432179,0.03,97710.0,97709.0,0.3608]
[1739403432467,0.03,97710.0,97709.0,0.38128025]
[1739403433459,0.03,97710.0,97709.0,0.38978783]
[1739403435058,0.03,97710.0,97709.0,0.39078783]
[1739403436169,0.2046471,97716.0,97709.0,0.39078783]
[1739403436371,0.3946471,97716.0,97710.0,0.02048025]
[1739403436565,0.3946471,97716.0,97711.0,0.02048025]
[1739403436762,0.3946471,97716.0,97712.0,0.02048025]
[1739403436963,0.2046516,97714.0,97713.0,0.02048025]
[1739403437163,0.4146516,97714.0,97713.0,0.02048025]
[1739403438171,0.4156516,97714.0,97713.0,0.02148025]
[1739403438969,0.4156516,97714.0,97713.0,0.02147596]
[1739403439468,0.211,97714.0,97713.0,0.02147596]
[1739403442267,0.001,97714.0,97713.0,0.02147596]
[1739403443070,0.001,97714.0,97713.0,0.001]
[1739403444668,0.001,97714.0,97713.0,0.0214764]
[1739403445276,0.001,97714.0,97713.0,0.02147611]
[1739403446070,0.011,97714.0,97713.0,0.02147611]
[1739403446269,0.00015352,97719.0,97718.0,0.2046422]
[1739403446483,0.00015352,97719.0,97718.0,0.58591831]
[1739403447174,0.00015352,97719.0,97718.0,0.58591696]
[1739403447674,0.00015352,97719.0,97718.0,0.58591693]
[1739403447970,0.06115352,97719.0,97718.0,0.58691693]
[1739403448175,0.06115352,97719.0,97718.0,0.38227473]
[1739403452871,0.06115352,97719.0,97718.0,0.3618]
[1739403454971,0.26579362,97719.0,97718.0,0.5664422]
[1739403458686,0.26579362,97719.0,97718.0,0.3618]
[1739403460684,0.26579362,97719.0,97718.0,0.001]
[1739403462787,0.20579362,97719.0,97718.0,0.001]
[1739403469491,0.21457373,97719.0,97718.0,0.001]
[1739403470590,0.56659362,97719.0,97718.0,0.001]
[1739403471093,0.20579362,97719.0,97718.0,0.001]
[1739403471884,0.20579362,97719.0,97718.0,0.2056422]
[1739403479898,0.20579362,97719.0,97718.0,0.22611862]
[1739403480096,0.20579362,97719.0,97718.0,0.22611865]
[1739403480302,0.20579362,97719.0,97718.0,0.2056422]
[1739403481088,0.20579362,97719.0,97718.0,0.22611874]
[1739403481500,0.20579362,97719.0,97718.0,0.2056422]
[1739403487219,0.20579362,97719.0,97718.0,0.001]
[1739403489312,0.00115352,97719.0,97718.0,0.001]
[1739403489513,0.15231295,97725.0,97718.0,0.0214764]
[1739403489716,0.01,97725.0,97724.0,0.5654296]
[1739403489914,0.01,97725.0,97724.0,0.585906]
[1739403491112,0.01,97725.0,97724.0,0.586906]
[1739403491311,0.01,97725.0,97724.0,0.3822764]
[1739403492515,0.01,97725.0,97724.0,0.586906]
[1739403494023,0.01,97725.0,97724.0,0.58690339]
[1739403495013,0.2146274,97725.0,97724.0,0.38227379]
[1739403495718,0.2146274,97725.0,97724.0,0.02147379]
[1739403496123,0.2146274,97725.0,97724.0,0.001]
[1739403502126,0.01,97725.0,97724.0,0.001]
[1739403508151,0.01,97725.0,97724.0,0.2056296]
[1739403509635,0.01,97725.0,97724.0,0.5664296]
[1739403518443,0.2146275,97725.0,97724.0,0.5664296]
[1739403519347,0.2146275,97725.0,97724.0,0.3618]
[1739403522048,0.2146275,97725.0,97724.0,0.001]
[1739403522246,0.2146275,97725.0,97724.0,0.5664296]
[1739403524046,0.01,97725.0,97724.0,0.5664296]
[1739403525745,0.01,97725.0,97724.0,0.2056296]
[1739403525950,0.01,97725.0,97724.0,0.5664296]
[1739403540751,0.3,97740.0,97724.0,0.5664296]
[1739403540752,0.3608,97774.0,97726.0,0.0511561]
[1739403540956,0.3608,97774.0,97744.0,0.5653878]
[1739403540957,0.05153512,97745.0,97744.0,0.5653878]
[1739403541157,0.00153512,97745.0,97744.0,0.5653878]
[1739403541563,0.00153512,97745.0,97744.0,0.57452637]
[1739403542158,0.0511258,97785.0,97744.0,0.36993857]
[1739403542364,0.2045313,97771.0,97747.0,0.2045813]
[1739403542663,1.5,97789.0,97747.0,0.2045813]
[1739403542864,0.24485456,97779.0,97759.0,0.2045549]
[1739403543061,0.40424774,97769.0,97760.0,0.0633]
[1739403543257,0.40424774,97769.0,97760.0,0.2678534]
[1739403543455,0.40424774,97769.0,97760.0,0.0633]
[1739403543662,0.24485456,97779.0,97768.0,0.3608]
[1739403543862,0.30485456,97779.0,97778.0,0.3608]
[1739403544569,0.30485456,97779.0,97778.0,0.36989089]
[1739403546073,0.30485456,97779.0,97778.0,0.37089089]
[1739403547375,0.06,97779.0,97778.0,0.37089089]
[1739403547779,0.00153477,97789.0,97787.0,0.2044968]
[1739403547974,0.00153477,97789.0,97788.0,0.3608]
[1739403549983,0.00153477,97789.0,97788.0,0.3618]
[1739403550882,0.1,97800.0,97797.0,0.2044765]
[1739403551079,0.17,97800.0,97799.0,0.3608]
[1739403551278,0.17,97800.0,97799.0,0.5652727]
[1739403553387,0.17,97800.0,97799.0,0.3608]
[1739403553578,0.17,97800.0,97799.0,0.3618]
[1739403554783,0.3744706,97800.0,97799.0,0.3618]
[1739403555579,0.17,97800.0,97799.0,0.3618]
[1739403561384,0.1,97800.0,97799.0,0.3618]
[1739403561789,0.3044706,97800.0,97799.0,0.3618]
[1739403562391,0.3044706,97800.0,97799.0,0.5662727]
[1739403564596,0.3044706,97800.0,97799.0,0.2054727]
[1739403565891,0.3044706,97800.0,97799.0,0.001]
[1739403569093,0.3711179,97800.0,97776.0,0.3608]
[1739403569289,0.3711179,97800.0,97781.0,0.2045102]
[1739403569290,0.2044957,97788.0,97781.0,0.2045102]
[1739403569492,0.4244957,97788.0,97781.0,0.2045102]
[1739403570198,0.4244957,97788.0,97787.0,0.37089892]
[1739403571596,0.4244957,97788.0,97787.0,0.36989892]
[1739403571796,0.4244957,97788.0,97787.0,0.37089892]
[1739403572402,0.4244957,97788.0,97787.0,0.01009892]
[1739403572705,0.2045146,97779.0,97776.0,0.3608]
[1739403572998,0.4145146,97779.0,97770.0,0.183674]
[1739403573194,0.7753146,97779.0,97770.0,0.183674]